{"text_format":"1","workbook":"xlsx","n_sheets":3,"sheets":["List1","Graf4","List2"],"not_rendered":{"charts":2,"images":0,"macros":1,"external_links":0,"defined_names":2,"comments":0,"pivot_tables":0},"unopened":[{"sheet":"Graf4","index":1,"reason":"not_a_worksheet"}],"bounds":{"document_bytes":16777216,"sheet_cells":100000,"rows_first":2000,"rows_last":500,"rows_between":2000,"halvings":0,"cell_chars":16384,"cell_head_chars":4096},"cells_cut":0,"cells_raw":0,"read":"whole","date_system":"1900"}

{"sheet":"List1","index":0,"n_rows":88,"n_cols":34,"rows_kept":88,"cut":false,"hidden":false,"merged":[]}
["Týmy","Střelec","Název","výsledek","FBC Sázava × Gambusíni Slaný","Sluneční záře × Dragon jupiter","Srnky × Keya","Polárka Kroměříž × sluneční záře","Bubáci × FbC Krtky nežerem","Drgon Jupiter × Lokomotiva Kolín","FbC krtky nežerem × Jeleni","Jeleni × RS 75","Lokomotiva Kolín × Polárka Kroměříž","RS75 × bubáci","Srnky × FBC Krtky nežerem","FBC Sázava × Sluneční záře","Dragon Jupiter × Gambusíni Slasný","Jeleni × Keya","Sluneční záře × Lokomotiva Kolín","FbC Krtky nežerem × RS75","Polárka Kroměříž × FBC Sázava","Bubáci × Srny","Keya × FbC Krtky nežerem","Slaný × Sluneční záře","RS75 × Srnky","Lokomotiva Kolín × FBC Sázava","Bubáci × Keya","Polárka × Gambusíni","sázava × Jupiter","Srnky × Jeleni","Keya × RS75","Gambusíni × Lokomotiva","Jeleni × Bubáci","Dragon jupiter × Polárka Kroměříž"]
["RS75","Ananas",{"$f":"B2&\" \"&\"(\"&A2&\")\"","v":"Ananas (RS75)"},{"$f":"SUM(E2:AJ2)","v":3},null,null,null,null,null,null,null,null,null,null,null,null,null,null,null,1,null,null,null,null,2]
["RS75","Párátko",{"$f":"B3&\" \"&\"(\"&A3&\")\"","v":"Párátko (RS75)"},1,null,null,null,null,null,null,null,null,null,null,null,null,null,null,null,null,null,null,null,null,1]
["RS75","Uzel","Uzel (RS75)",0]
["RS75","Lasička","Lasička (RS75)",3,null,null,null,null,null,null,null,null,null,2,null,null,null,null,null,null,null,null,null,null,1]
["RS75","Kornout","Kornout (RS75)",1,null,null,null,null,null,null,null,null,null,null,null,null,null,null,null,1]
["RS75","Laky","Laky (RS75)",0]
["RS75","Rolf","Rolf (RS75)",8,null,null,null,null,null,null,null,3,null,null,null,null,null,null,null,2,null,null,null,null,3]
["Dragon-Jupiter","Maňas","Maňas (Dragon-Jupiter)",18,null,4,null,null,null,4,null,null,null,null,null,null,6,null,null,null,null,null,null,null,null,null,null,null,2,null,null,null,null,2]
["Dragon-Jupiter","Bradolf Pihler","Bradolf Pihler (Dragon-Jupiter)",0]
["Dragon-Jupiter","Brad Broďák","Brad Broďák (Dragon-Jupiter)",0]
["Dragon-Jupiter","Michal","Michal (Dragon-Jupiter)",0]
["Dragon-Jupiter","Peetee","Peetee (Dragon-Jupiter)",0]
["Dragon-Jupiter","MohamadAlŠiškebab","MohamadAlŠiškebab (Dragon-Jupiter)",0]
["Jeleni","Krtek","Krtek (Jeleni)",4,null,null,null,null,null,null,1,1,null,null,null,null,null,1,null,null,null,null,null,null,null,null,null,null,null,1]
["Jeleni","Hanuš","Hanuš (Jeleni)",0]
["Jeleni","Honza","Honza (Jeleni)",4,null,null,null,null,null,null,1,null,null,null,null,null,null,1,null,null,null,null,null,null,null,null,null,null,null,null,null,null,2]
["Jeleni","Danny","Danny (Jeleni)",3,null,null,null,null,null,null,null,2,null,null,null,null,null,null,null,null,null,null,null,null,null,null,null,null,null,1]
["Jeleni","Pip","Pip (Jeleni)",0]
["Jeleni","Žmolek","Žmolek (Jeleni)",1,null,null,null,null,null,null,1]
["Jeleni","Cvrk","Cvrk (Jeleni)",3,null,null,null,null,null,null,null,1,null,null,null,null,null,null,null,null,null,null,null,null,null,null,null,null,null,null,null,null,2]
["Jeleni","Kosťa","Kosťa (Jeleni)",2,null,null,null,null,null,null,null,null,null,null,null,null,null,null,null,null,null,null,null,null,null,null,null,null,null,null,null,null,2]
["Jeleni","Jakub","Jakub (Jeleni)",1,null,null,null,null,null,null,null,null,null,null,null,null,null,null,null,null,null,null,null,null,null,null,null,null,null,1]
["FbC Krtky Nežerem","Žvejk","Žvejk (FbC Krtky Nežerem)",0]
["FbC Krtky Nežerem","Daniel","Daniel (FbC Krtky Nežerem)",8,null,null,null,null,4,null,null,null,null,null,1,null,null,null,null,null,null,null,3]
["FbC Krtky Nežerem","Johny","Johny (FbC Krtky Nežerem)",0]
["FbC Krtky Nežerem","Kouzlo","Kouzlo (FbC Krtky Nežerem)",2,null,null,null,null,null,null,null,null,null,null,2]
["FbC Krtky Nežerem","Koumes","Koumes (FbC Krtky Nežerem)",0]
["FbC Krtky Nežerem","Anička","Anička (FbC Krtky Nežerem)",0]
["FbC Krtky Nežerem","Špageta","Špageta (FbC Krtky Nežerem)",1,null,null,null,null,null,null,null,null,null,null,1]
["Bubáci","Pene","Pene (Bubáci)",4,null,null,null,null,2,null,null,null,null,1,null,null,null,null,null,null,null,null,null,null,null,null,1]
["Bubáci","Hades","Hades (Bubáci)",0]
["Bubáci","Hruška","Hruška (Bubáci)",1,null,null,null,null,null,null,null,null,null,null,null,null,null,null,null,null,null,null,null,null,null,null,1]
["Bubáci","Ďábel","Ďábel (Bubáci)",1,null,null,null,null,1]
["Bubáci","Brky","Brky (Bubáci)",{"$f":"SUM(E35:AJ35)","v":0}]
["Bubáci","Zvon","Zvon (Bubáci)",0]
["Bubáci","Fido","Fido (Bubáci)",0]
["Bubáci","Bohoušek","Bohoušek (Bubáci)",2,null,null,null,null,1,null,null,null,null,null,null,null,null,null,null,null,null,1]
["Sluneční záře","Pašík","Pašík (Sluneční záře)",6,null,2,null,null,null,null,null,null,null,null,null,1,null,null,1,null,null,null,null,2]
["Sluneční záře","Aleš","Aleš (Sluneční záře)",15,null,1,null,4,null,null,null,null,null,null,null,1,null,null,1,null,null,null,null,8]
["Sluneční záře","Jakub","Jakub (Sluneční záře)",0]
["Sluneční záře","Jan","Jan (Sluneční záře)",5,null,2,null,null,null,null,null,null,null,null,null,1,null,null,1,null,null,null,null,1]
["Srnky","Šnek","Šnek (Srnky)",2,null,null,null,null,null,null,null,null,null,null,1,null,null,null,null,null,null,1]
["Srnky","Rejsek","Rejsek (Srnky)",1,null,null,1]
["Srnky","Leguán","Leguán (Srnky)",0]
["Srnky","Krtek","Krtek (Srnky)",2,null,null,null,null,null,null,null,null,null,null,null,null,null,null,null,null,null,1,null,null,1]
["Srnky","Pišta","Pišta (Srnky)",0]
["Srnky","Žabák","Žabák (Srnky)",0]
["FBC Sázava","Mates","Mates (FBC Sázava)",0]
["FBC Sázava","Márty 99","Márty 99 (FBC Sázava)",3,1,null,null,null,null,null,null,null,null,null,null,1,null,null,null,null,1]
["FBC Sázava","Křeča 55","Křeča 55 (FBC Sázava)",6,2,null,null,null,null,null,null,null,null,null,null,1,null,null,null,null,null,null,null,null,null,1,null,null,2]
["FBC Sázava","Fíja 11","Fíja 11 (FBC Sázava)",4,1,null,null,null,null,null,null,null,null,null,null,null,null,null,null,null,2,null,null,null,null,null,null,null,1]
["FBC Sázava","Radun 88","Radun 88 (FBC Sázava)",4,1,null,null,null,null,null,null,null,null,null,null,null,null,null,null,null,1,null,null,null,null,1,null,null,1]
["FBC Sázava","Šotek 22","Šotek 22 (FBC Sázava)",7,2,null,null,null,null,null,null,null,null,null,null,1,null,null,null,null,null,null,null,null,null,2,null,null,2]
["FBC Sázava","Smrtonoš 68","Smrtonoš 68 (FBC Sázava)",4,3,null,null,null,null,null,null,null,null,null,null,1]
["Lokomotiva Kolín","Blochin 8","Blochin 8 (Lokomotiva Kolín)",7,null,null,null,null,null,null,null,null,1,null,null,null,null,null,2,null,null,null,null,null,null,1,null,null,null,null,null,3]
["Lokomotiva Kolín","Pecka 7","Pecka 7 (Lokomotiva Kolín)",2,null,null,null,null,null,null,null,null,null,null,null,null,null,null,null,null,null,null,null,null,null,null,null,null,null,null,null,2]
["Lokomotiva Kolín","Mottori 5","Mottori 5 (Lokomotiva Kolín)",1,null,null,null,null,null,null,null,null,null,null,null,null,null,null,null,null,null,null,null,null,null,null,null,null,null,null,null,1]
["Lokomotiva Kolín","B-Bob","B-Bob (Lokomotiva Kolín)",0]
["Lokomotiva Kolín","Vokin 2","Vokin 2 (Lokomotiva Kolín)",6,null,null,null,null,null,1,null,null,1,null,null,null,null,null,1,null,null,null,null,null,null,null,null,null,null,null,null,3]
["Lokomotiva Kolín","Dudek 6","Dudek 6 (Lokomotiva Kolín)",6,null,null,null,null,null,1,null,null,1,null,null,null,null,null,null,null,null,null,null,null,null,1,null,null,null,null,null,3]
["Gambusíni Slaný","Dzik","Dzik (Gambusíni Slaný)",1,null,null,null,null,null,null,null,null,null,null,null,null,1]
["Gambusíni Slaný","Vozová hradba","Vozová hradba (Gambusíni Slaný)",0]
["Gambusíni Slaný","Ufon","Ufon (Gambusíni Slaný)",0]
["Gambusíni Slaný","Švejk","Švejk (Gambusíni Slaný)",0]
["Gambusíni Slaný","Medvěd","Medvěd (Gambusíni Slaný)",0]
["Gambusíni Slaný","Iveta","Iveta (Gambusíni Slaný)",0]
["Gambusíni Slaný","Zlotka","Zlotka (Gambusíni Slaný)",0]
["Polárka Kroměříž","Lamač",{"$f":"B69&\" \"&\"(\"&A69&\")\"","v":"Lamač (Polárka Kroměříž)"},{"$f":"SUM(E69:AJ69)","v":2},null,null,null,null,null,null,null,null,null,null,null,null,null,null,null,null,null,null,null,null,null,null,null,1,null,null,null,null,null,1]
["Polárka Kroměříž","Pap","Pap (Polárka Kroměříž)",2,null,null,null,1,null,null,null,null,null,null,null,null,null,null,null,null,null,null,null,null,null,null,null,1]
["Polárka Kroměříž","Mip","Mip (Polárka Kroměříž)",3,null,null,null,null,null,null,null,null,2,null,null,null,null,null,null,null,null,null,null,null,null,null,null,1]
["Polárka Kroměříž","Johnn Depp","Johnn Depp (Polárka Kroměříž)",0]
["Polárka Kroměříž","Hosťa","Hosťa (Polárka Kroměříž)",1,null,null,null,null,null,null,null,null,null,null,null,null,null,null,null,null,null,null,null,null,null,null,null,1]
["Polárka Kroměříž","Šéf","Šéf (Polárka Kroměříž)",9,null,null,null,2,null,null,null,null,1,null,null,null,null,null,null,null,1,null,null,null,null,null,null,5]
["KEYA","Fík","Fík (KEYA)",1,null,null,null,null,null,null,null,null,null,null,null,null,null,null,null,null,null,null,null,null,null,null,1]
["KEYA","Kuře","Kuře (KEYA)",5,null,null,null,null,null,null,null,null,null,null,null,null,null,null,null,null,null,null,1,null,null,null,2,null,null,null,2]
["KEYA","Septil","Septil (KEYA)",4,null,null,2,null,null,null,null,null,null,null,null,null,null,null,null,null,null,null,2]
["KEYA","It???","It??? (KEYA)",0]
["KEYA","Fredlin","Fredlin (KEYA)",1,null,null,null,null,null,null,null,null,null,null,null,null,null,null,null,null,null,null,1]
["KEYA","Dave","Dave (KEYA)",0]
["KEYA","Delfín","Delfín (KEYA)",0]
["KEYA","Johny","Johny (KEYA)",1,null,null,null,null,null,null,null,null,null,null,null,null,null,null,null,null,null,null,null,null,null,null,null,null,null,null,1]
[null,"Nečitelný zápis","Nečitelný zápis ()",1,null,null,null,null,null,null,null,null,null,null,null,null,null,null,null,null,null,null,null,null,null,null,null,1]
[null,null," ()",0]
[null,null," ()",0]
[null,null," ()",0]
[null,null," ()",0]
[null,null," ()",0]

{"sheet":"List2","index":2,"n_rows":110,"n_cols":2,"rows_kept":110,"cut":false,"hidden":false,"merged":[]}
["hráč","výsledek"]
[{"$f":"List1!C9","v":"Maňas (Dragon-Jupiter)"},{"$f":"List1!D9","v":18}]
[{"$f":"List1!C40","v":"Aleš (Sluneční záře)"},{"$f":"List1!D40","v":15}]
[{"$f":"List1!C74","v":"Šéf (Polárka Kroměříž)"},{"$f":"List1!D74","v":9}]
[{"$f":"List1!C25","v":"Daniel (FbC Krtky Nežerem)"},{"$f":"List1!D25","v":8}]
[{"$f":"List1!C8","v":"Rolf (RS75)"},{"$f":"List1!D8","v":8}]
[{"$f":"List1!C56","v":"Blochin 8 (Lokomotiva Kolín)"},{"$f":"List1!D56","v":7}]
[{"$f":"List1!C39","v":"Pašík (Sluneční záře)"},{"$f":"List1!D39","v":6}]
[{"$f":"List1!C51","v":"Křeča 55 (FBC Sázava)"},{"$f":"List1!D51","v":6}]
[{"$f":"List1!C60","v":"Vokin 2 (Lokomotiva Kolín)"},{"$f":"List1!D60","v":6}]
[{"$f":"List1!C61","v":"Dudek 6 (Lokomotiva Kolín)"},{"$f":"List1!D61","v":6}]
[{"$f":"List1!C42","v":"Jan (Sluneční záře)"},{"$f":"List1!D42","v":5}]
[{"$f":"List1!C76","v":"Kuře (KEYA)"},{"$f":"List1!D76","v":5}]
[{"$f":"List1!C55","v":"Smrtonoš 68 (FBC Sázava)"},{"$f":"List1!D55","v":4}]
[{"$f":"List1!C77","v":"Septil (KEYA)"},{"$f":"List1!D77","v":4}]
[{"$f":"List1!C31","v":"Pene (Bubáci)"},{"$f":"List1!D31","v":4}]
[{"$f":"List1!C15","v":"Krtek (Jeleni)"},{"$f":"List1!D15","v":4}]
[{"$f":"List1!C52","v":"Fíja 11 (FBC Sázava)"},{"$f":"List1!D52","v":4}]
[{"$f":"List1!C53","v":"Radun 88 (FBC Sázava)"},{"$f":"List1!D53","v":4}]
[{"$f":"List1!C17","v":"Honza (Jeleni)"},{"$f":"List1!D17","v":4}]
[{"$f":"List1!C50","v":"Márty 99 (FBC Sázava)"},{"$f":"List1!D50","v":3}]
[{"$f":"List1!C5","v":"Lasička (RS75)"},{"$f":"List1!D5","v":3}]
[{"$f":"List1!C2","v":"Ananas (RS75)"},{"$f":"List1!D2","v":3}]
[{"$f":"List1!C71","v":"Mip (Polárka Kroměříž)"},{"$f":"List1!D71","v":3}]
[{"$f":"List1!C18","v":"Danny (Jeleni)"},{"$f":"List1!D18","v":3}]
[{"$f":"List1!C21","v":"Cvrk (Jeleni)"},{"$f":"List1!D21","v":3}]
[{"$f":"List1!C27","v":"Kouzlo (FbC Krtky Nežerem)"},{"$f":"List1!D27","v":2}]
[{"$f":"List1!C38","v":"Bohoušek (Bubáci)"},{"$f":"List1!D38","v":2}]
[{"$f":"List1!C43","v":"Šnek (Srnky)"},{"$f":"List1!D43","v":2}]
[{"$f":"List1!C46","v":"Krtek (Srnky)"},{"$f":"List1!D46","v":2}]
[{"$f":"List1!C70","v":"Pap (Polárka Kroměříž)"},{"$f":"List1!D70","v":2}]
[{"$f":"List1!C57","v":"Pecka 7 (Lokomotiva Kolín)"},{"$f":"List1!D57","v":2}]
[{"$f":"List1!C69","v":"Lamač (Polárka Kroměříž)"},{"$f":"List1!D69","v":2}]
[{"$f":"List1!C22","v":"Kosťa (Jeleni)"},{"$f":"List1!D22","v":2}]
[{"$f":"List1!C44","v":"Rejsek (Srnky)"},{"$f":"List1!D44","v":1}]
[{"$f":"List1!C20","v":"Žmolek (Jeleni)"},{"$f":"List1!D20","v":1}]
[{"$f":"List1!C34","v":"Ďábel (Bubáci)"},{"$f":"List1!D34","v":1}]
[{"$f":"List1!C30","v":"Špageta (FbC Krtky Nežerem)"},{"$f":"List1!D30","v":1}]
[{"$f":"List1!C62","v":"Dzik (Gambusíni Slaný)"},{"$f":"List1!D62","v":1}]
[{"$f":"List1!C6","v":"Kornout (RS75)"},{"$f":"List1!D6","v":1}]
[{"$f":"List1!C79","v":"Fredlin (KEYA)"},{"$f":"List1!D79","v":1}]
[{"$f":"List1!C3","v":"Párátko (RS75)"},{"$f":"List1!D3","v":1}]
[{"$f":"List1!C73","v":"Hosťa (Polárka Kroměříž)"},{"$f":"List1!D73","v":1}]
[{"$f":"List1!C83","v":"Nečitelný zápis ()"},{"$f":"List1!D83","v":1}]
[{"$f":"List1!C33","v":"Hruška (Bubáci)"},{"$f":"List1!D33","v":1}]
[{"$f":"List1!C75","v":"Fík (KEYA)"},{"$f":"List1!D75","v":1}]
[{"$f":"List1!C23","v":"Jakub (Jeleni)"},{"$f":"List1!D23","v":1}]
[{"$f":"List1!C58","v":"Mottori 5 (Lokomotiva Kolín)"},{"$f":"List1!D58","v":1}]
[{"$f":"List1!C82","v":"Johny (KEYA)"},{"$f":"List1!D82","v":1}]
[{"$f":"List1!C87","v":" ()"},{"$f":"List1!D87","v":0}]
[{"$f":"List1!C80","v":"Dave (KEYA)"},{"$f":"List1!D80","v":0}]
[{"$f":"List1!C65","v":"Švejk (Gambusíni Slaný)"},{"$f":"List1!D65","v":0}]
[{"$f":"List1!C14","v":"MohamadAlŠiškebab (Dragon-Jupiter)"},{"$f":"List1!D14","v":0}]
[{"$f":"List1!C48","v":"Žabák (Srnky)"},{"$f":"List1!D48","v":0}]
[{"$f":"List1!C19","v":"Pip (Jeleni)"},{"$f":"List1!D19","v":0}]
[{"$f":"List1!C67","v":"Iveta (Gambusíni Slaný)"},{"$f":"List1!D67","v":0}]
[{"$f":"List1!C59","v":"B-Bob (Lokomotiva Kolín)"},{"$f":"List1!D59","v":0}]
[{"$f":"List1!C16","v":"Hanuš (Jeleni)"},{"$f":"List1!D16","v":0}]
[{"$f":"List1!C4","v":"Uzel (RS75)"},{"$f":"List1!D4","v":0}]
[{"$f":"List1!C72","v":"Johnn Depp (Polárka Kroměříž)"},{"$f":"List1!D72","v":0}]
[{"$f":"List1!C49","v":"Mates (FBC Sázava)"},{"$f":"List1!D49","v":0}]
[{"$f":"List1!C85","v":" ()"},{"$f":"List1!D85","v":0}]
[{"$f":"List1!C37","v":"Fido (Bubáci)"},{"$f":"List1!D37","v":0}]
[{"$f":"List1!C66","v":"Medvěd (Gambusíni Slaný)"},{"$f":"List1!D66","v":0}]
[{"$f":"List1!C24","v":"Žvejk (FbC Krtky Nežerem)"},{"$f":"List1!D24","v":0}]
[{"$f":"List1!C68","v":"Zlotka (Gambusíni Slaný)"},{"$f":"List1!D68","v":0}]
[{"$f":"List1!C11","v":"Brad Broďák (Dragon-Jupiter)"},{"$f":"List1!D11","v":0}]
[{"$f":"List1!C12","v":"Michal (Dragon-Jupiter)"},{"$f":"List1!D12","v":0}]
[{"$f":"List1!C86","v":" ()"},{"$f":"List1!D86","v":0}]
[{"$f":"List1!C88","v":" ()"},{"$f":"List1!D88","v":0}]
[{"$f":"List1!C35","v":"Brky (Bubáci)"},{"$f":"List1!D35","v":0}]
[{"$f":"List1!C10","v":"Bradolf Pihler (Dragon-Jupiter)"},{"$f":"List1!D10","v":0}]
[{"$f":"List1!C26","v":"Johny (FbC Krtky Nežerem)"},{"$f":"List1!D26","v":0}]
[{"$f":"List1!C63","v":"Vozová hradba (Gambusíni Slaný)"},{"$f":"List1!D63","v":0}]
[{"$f":"List1!C13","v":"Peetee (Dragon-Jupiter)"},{"$f":"List1!D13","v":0}]
[{"$f":"List1!C47","v":"Pišta (Srnky)"},{"$f":"List1!D47","v":0}]
[{"$f":"List1!C92","v":0},{"$f":"List1!D92","v":0}]
[{"$f":"List1!C41","v":"Jakub (Sluneční záře)"},{"$f":"List1!D41","v":0}]
[{"$f":"List1!C90","v":0},{"$f":"List1!D90","v":0}]
[{"$f":"List1!C7","v":"Laky (RS75)"},{"$f":"List1!D7","v":0}]
[{"$f":"List1!C28","v":"Koumes (FbC Krtky Nežerem)"},{"$f":"List1!D28","v":0}]
[{"$f":"List1!C29","v":"Anička (FbC Krtky Nežerem)"},{"$f":"List1!D29","v":0}]
[{"$f":"List1!C32","v":"Hades (Bubáci)"},{"$f":"List1!D32","v":0}]
[{"$f":"List1!C36","v":"Zvon (Bubáci)"},{"$f":"List1!D36","v":0}]
[{"$f":"List1!C45","v":"Leguán (Srnky)"},{"$f":"List1!D45","v":0}]
[{"$f":"List1!C64","v":"Ufon (Gambusíni Slaný)"},{"$f":"List1!D64","v":0}]
[{"$f":"List1!C78","v":"It??? (KEYA)"},{"$f":"List1!D78","v":0}]
[{"$f":"List1!C81","v":"Delfín (KEYA)"},{"$f":"List1!D81","v":0}]
[{"$f":"List1!C84","v":" ()"},{"$f":"List1!D84","v":0}]
[{"$f":"List1!C89","v":0},{"$f":"List1!D89","v":0}]
[{"$f":"List1!C93","v":0},{"$f":"List1!D93","v":0}]
[{"$f":"List1!C94","v":0},{"$f":"List1!D94","v":0}]
[{"$f":"List1!C95","v":0},{"$f":"List1!D95","v":0}]
[{"$f":"List1!C96","v":0},{"$f":"List1!D96","v":0}]
[{"$f":"List1!C97","v":0},{"$f":"List1!D97","v":0}]
[{"$f":"List1!C98","v":0},{"$f":"List1!D98","v":0}]
[{"$f":"List1!C99","v":0},{"$f":"List1!D99","v":0}]
[{"$f":"List1!C100","v":0},{"$f":"List1!D100","v":0}]
[{"$f":"List1!C101","v":0},{"$f":"List1!D101","v":0}]
[{"$f":"List1!C102","v":0},{"$f":"List1!D102","v":0}]
[{"$f":"List1!C103","v":0},{"$f":"List1!D103","v":0}]
[{"$f":"List1!C104","v":0},{"$f":"List1!D104","v":0}]
[{"$f":"List1!C105","v":0},{"$f":"List1!D105","v":0}]
[{"$f":"List1!C106","v":0},{"$f":"List1!D106","v":0}]
[{"$f":"List1!C107","v":0},{"$f":"List1!D107","v":0}]
[{"$f":"List1!C108","v":0},{"$f":"List1!D108","v":0}]
[{"$f":"List1!C109","v":0},{"$f":"List1!D109","v":0}]
[{"$f":"List1!C110","v":0},{"$f":"List1!D110","v":0}]
[{"$f":"List1!C111","v":0},{"$f":"List1!D111","v":0}]
[{"$f":"List1!C112","v":0},{"$f":"List1!D112","v":0}]